fUSD/lending_fUSD_20250521
["ID","MTS","AMOUNT","RATE_DAILY","PERIOD"]
[361786667,1747786259465,-291.768511,0.000248,7]
[361786668,1747786259475,-291.768511,0.000248,7]
[361786669,1747786259492,-291.768511,0.000248,7]
[361786670,1747786259505,-291.768511,0.000248,7]
[361786671,1747786259515,-590.227762,0.000248,7]
[361786672,1747786259525,-590.227762,0.000248,7]
[361786673,1747786259535,-590.227762,0.000248,7]
[361786674,1747786259545,-590.227762,0.000248,7]
[361786675,1747786259555,-826.395756,0.000248,7]
[361786676,1747786259565,-826.395756,0.000248,7]
[361786677,1747786259574,-826.395756,0.000248,7]
[361786678,1747786259584,-826.395756,0.000248,7]
[361786679,1747786259594,-177.280068,0.000248,7]
[361786680,1747786259604,-177.280068,0.000248,7]
[361786681,1747786259615,-177.280068,0.000248,7]
[361786682,1747786259624,-177.280068,0.000248,7]
[361786683,1747786259635,-1250.677821,0.000248,7]
[361786684,1747786259645,-1250.677821,0.000248,7]
[361786685,1747786259655,-1250.677821,0.000248,7]
[361786686,1747786259665,-1250.677821,0.000248,7]
[361786687,1747786259674,-650889.14923384,0.00024843,2]
[361786688,1747786259685,-17313.6058129,0.00024843,2]
[361786689,1747786259694,-15785.7400098,0.00024843,2]
[361786690,1747786259703,-172.36447946,0.0002485,2]
[361786691,1747786259714,-605.36828591,0.00024859,2]
[361786692,1747786259723,-16626.0,0.00024877,2]
[361786693,1747786259734,-196.0,0.00024877,2]
[361786694,1747786259748,-246.8126,0.00024883,7]
[361786695,1747786259758,-2014.219479,0.00024883,7]
[361786696,1747786259767,-151.0,0.00024883,7]
[361786697,1747786259778,-314.957482,0.00024883,7]
[361786698,1747786259789,-314.957482,0.00024883,7]
[361786699,1747786259799,-21990.4914988,0.00024883,2]
[361786700,1747786259808,-151.0,0.00024883,7]
[361786701,1747786259818,-300.906806,0.00024883,7]
[361786702,1747786259827,-300.906806,0.00024883,7]
[361786703,1747786259837,-151.0,0.00024883,7]
[361786704,1747786259846,-159.969778,0.00024883,7]
[361786705,1747786259856,-159.969778,0.00024883,7]
[361786706,1747786259866,-266.062652,0.00024883,7]
[361786707,1747786259876,-266.062652,0.00024883,7]
[361786708,1747786259885,-151.0,0.00024883,7]
[361786709,1747786259895,-151.0,0.00024883,7]
[361786710,1747786259904,-1454.2003186,0.00024883,2]
[361786711,1747786259915,-291.768511,0.00024883,7]
[361786712,1747786259926,-291.768511,0.00024883,7]
[361786713,1747786259937,-2204.7395536,0.00024883,2]
[361786714,1747786259949,-590.227762,0.00024883,7]
[361786715,1747786259959,-590.227762,0.00024883,7]
[361786716,1747786259968,-1233.1978521,0.00024883,2]
[361786717,1747786259978,-826.395756,0.00024883,7]
[361786718,1747786259988,-826.395756,0.00024883,7]
[361786719,1747786259997,-177.280068,0.00024883,7]
[361786720,1747786260007,-14257.8742066,0.00024883,2]
[361786721,1747786260017,-177.280068,0.00024883,7]
[361786722,1747786260028,-1250.677821,0.00024883,7]
[361786723,1747786260037,-1250.677821,0.00024883,7]
[361786724,1747786260046,-194.626736,0.0002489,7]
[361786725,1747786260056,-1176.108541,0.0002489,7]
[361786726,1747786260065,-1176.108541,0.0002489,7]
[361786727,1747786260075,-151.0,0.000249,7]
[361786728,1747786260085,-151.0,0.000249,7]
[361786729,1747786260095,-151.0,0.000249,7]
[361786730,1747786260104,-181.877,0.000249,7]
[361786731,1747786260114,-181.87699136,0.000249,7]
[361786732,1747786260123,-151.0,0.000249,7]
[361786733,1747786260133,-151.0,0.000249,7]
[361786734,1747786260143,-151.0,0.000249,7]
[361786735,1747786260152,-151.0,0.000249,7]
[361786736,1747786260162,-2014.219479,0.000249,7]
[361786737,1747786260172,-2014.219479,0.000249,7]
[361786738,1747786260182,-151.0,0.000249,7]
[361786739,1747786260192,-151.0,0.000249,7]
[361786740,1747786260202,-151.0,0.000249,7]
[361786741,1747786260211,-151.0,0.000249,7]
[361786742,1747786260220,-151.0,0.000249,7]
[361786743,1747786260229,-314.957482,0.000249,7]
[361786744,1747786260239,-314.957482,0.000249,7]
[361786745,1747786260248,-151.0,0.000249,7]
[361786746,1747786260257,-151.0,0.000249,7]
[361786747,1747786260267,-153.756802,0.000249,7]
[361786748,1747786260277,-153.756802,0.000249,7]
[361786749,1747786260286,-151.0,0.000249,7]
[361786750,1747786260295,-297.69346,0.000249,7]
[361786751,1747786260304,-365.612112,0.000249,7]
[361786752,1747786260314,-365.612112,0.000249,7]
[361786753,1747786260323,-2179.569998,0.000249,7]
[361786754,1747786260332,-239.574428,0.000249,7]
[361786755,1747786260341,-231.821242,0.000249,7]
[361786756,1747786260351,-231.821242,0.000249,7]
[361786757,1747786260360,-5607.553736,0.000249,7]
[361786758,1747786260370,-5607.553736,0.000249,7]
[361786759,1747786260380,-160.900395,0.000249,7]
[361786760,1747786260390,-1176.108541,0.000249,7]
[361786761,1747786260399,-160.900395,0.000249,7]
[361786762,1747786260408,-1207.156888,0.000249,7]
[361786763,1747786260418,-1176.108541,0.000249,7]
[361786764,1747786260427,-1207.156888,0.000249,7]
[361786765,1747786260441,-151.0,0.000249,7]
[361786766,1747786260450,-151.0,0.000249,7]
[361786767,1747786260460,-300.906806,0.000249,7]
[361786768,1747786260470,-300.906806,0.000249,7]
[361786769,1747786260479,-151.0,0.000249,7]
[361786770,1747786260488,-159.969778,0.000249,7]
[361786771,1747786260497,-159.969778,0.000249,7]
[361786772,1747786260507,-266.062652,0.000249,7]
[361786773,1747786260518,-266.062652,0.000249,7]
[361786774,1747786260530,-151.0,0.000249,7]
[361786775,1747786260541,-151.0,0.000249,7]
[361786776,1747786260551,-530425.603645,0.000249,3]
[361786777,1747786260561,-151.0,0.000249,7]
[361786778,1747786260570,-151.0,0.000249,7]
[361786779,1747786260579,-291.768511,0.000249,7]
[361786780,1747786260590,-291.768511,0.000249,7]
[361786781,1747786260600,-291.768511,0.000249,7]
[361786782,1747786260610,-291.768511,0.000249,7]
[361786783,1747786260619,-590.227762,0.000249,7]
[361786784,1747786260628,-590.227762,0.000249,7]
[361786785,1747786260637,-590.227762,0.000249,7]
[361786786,1747786260647,-590.227762,0.000249,7]
[361786787,1747786260656,-5517.949549,0.000249,3]
[361786788,1747786260665,-826.395756,0.000249,7]
[361786789,1747786260675,-826.395756,0.000249,7]
[361786790,1747786260686,-826.395756,0.000249,7]
[361786791,1747786260696,-826.395756,0.000249,7]
[361786792,1747786260705,-177.280068,0.000249,7]
[361786793,1747786260715,-177.280068,0.000249,7]
[361786794,1747786260725,-1500.0,0.000249,14]
[361786795,1747786260735,-1500.0,0.000249,14]
[361786796,1747786260744,-1500.0,0.000249,14]
[361786797,1747786260757,-1500.0,0.000249,14]
[361786798,1747786260766,-1500.0,0.000249,14]
[361786799,1747786260776,-1500.0,0.000249,14]
[361786800,1747786260786,-177.280068,0.000249,7]
[361786801,1747786260797,-1500.0,0.000249,14]
[361786802,1747786260806,-177.280068,0.000249,7]
[361786803,1747786260816,-1500.0,0.000249,14]
[361786804,1747786260825,-1500.0,0.000249,14]
[361786805,1747786260834,-1500.0,0.000249,14]
[361786806,1747786260844,-1500.0,0.000249,14]
[361786807,1747786260854,-1500.0,0.000249,14]
[361786808,1747786260866,-1500.0,0.000249,14]
[361786809,1747786260875,-1500.0,0.000249,14]
[361786810,1747786260885,-1279.292647,0.000249,14]
[361786811,1747786260894,-1250.677821,0.000249,7]
[361786812,1747786260904,-1250.677821,0.000249,7]
[361786813,1747786260912,-1250.677821,0.000249,7]
[361786814,1747786260921,-1250.677821,0.000249,7]
[361786815,1747786260930,-500.0,0.00025,2]
[361786816,1747786260939,-7398.25613365,0.00025235,2]
[361786817,1747786260949,-12865.11766238,0.00025235,2]
[361786818,1747786260958,-1277.40054118,0.00025314,12]
[361786819,1747786260967,-238.4566503,0.0002534,2]
[361786820,1747786260976,-213.064948,0.00025388,4]
[361786821,1747786260986,-1158.62,0.00025479,2]
[361786822,1747786260995,-1158.62,0.00025479,2]
[361786823,1747786261004,-1158.62,0.00025479,2]
[361786824,1747786261013,-828.0,0.00025505,2]
[361786825,1747786261024,-150.98,0.00025571,2]
[361786826,1747786261033,-150.0,0.00026027,2]
[361786827,1747786261042,-5517.949549,0.00026033,3]
[361786828,1747786261051,-935.0,0.00026057,2]
[361786829,1747786261061,-1305.0,0.00026057,2]
[361786830,1747786261070,-799.0,0.00026057,2]
[361786831,1747786261079,-630.0,0.00026057,2]
[361786832,1747786261090,-585.0,0.00026057,2]
[361786833,1747786261099,-1459.0,0.00026057,2]
[361786834,1747786261108,-920.0,0.00026057,2]
[361786835,1747786261117,-500.0,0.00026057,2]
[361786836,1747786261126,-500.0,0.00026057,2]
[361786837,1747786261137,-500.0,0.00026057,2]
[361786838,1747786261148,-500.0,0.00026057,2]
[361786839,1747786261158,-500.0,0.00026057,2]
[361786840,1747786261168,-500.0,0.00026057,2]
[361786841,1747786261177,-500.0,0.00026057,2]
[361786842,1747786261190,-500.0,0.00026057,2]
[361786843,1747786261200,-930.0,0.00026057,2]
[361786844,1747786261209,-222.7525941,0.00026177,2]
[361786845,1747786261219,-1158.62,0.00026301,2]
[361786846,1747786261228,-1380.49,0.00026301,2]
[361786847,1747786261237,-1277.40054118,0.00026348,14]
[361786848,1747786261247,-2716.3,0.00026597,2]
[361786849,1747786261259,-880.0,0.00026597,2]
[361786850,1747786261268,-169.537,0.00026597,2]
[361786851,1747786261278,-154.0,0.00026597,2]
[361786852,1747786261287,-151.0,0.00026667,7]
[361786853,1747786261296,-500.0,0.00026667,2]
[361786854,1747786261306,-500.0,0.00026667,2]
[361786855,1747786261316,-500.0,0.00026667,2]
[361786856,1747786261326,-500.0,0.00026667,2]
[361786857,1747786261335,-500.0,0.00026667,2]
[361786858,1747786261346,-500.0,0.00026667,2]
[361786859,1747786261357,-500.0,0.00026667,2]
[361786860,1747786261366,-324.25,0.00026676,2]
[361786861,1747786261376,-550.0,0.00027,2]
[361786862,1747786261385,-360.079042,0.00027,2]
[361786863,1747786261395,-2529.87,0.00027,7]
[361786864,1747786261406,-341.8,0.00027123,2]
[361786865,1747786261416,-1157.59,0.00027123,2]
[361786866,1747786261426,-5517.949549,0.00027167,3]
[361786867,1747786261438,-398713.89399149,0.000272,2]
[361786868,1747786262185,-4359.35182713,0.000272,2]
[361786869,1747786262196,-3219.85439505,0.000272,2]
[361786870,1747786262209,-58856.28687419,0.000272,2]
[361786871,1747786262221,-4168.12699993,0.000272,2]
[361786872,1747786262233,-4409.74608926,0.000272,2]
[361786873,1747786262374,-786.20411512,0.000272,2]
[361786890,1747787143795,-49363.45310577,0.00012,2]
[361786893,1747787324384,-190.39888952,0.00011999,2]
[361786894,1747787324411,-500.0,0.00011999,2]
[361786895,1747787324435,-500.0,0.00011999,2]
[361786896,1747787324459,-500.0,0.00011999,2]
[361786897,1747787324484,-251.45962039,0.00011999,2]
[361786898,1747787324508,-8058.14149009,0.00012,2]
[361786899,1747787325496,-10000.0,0.00012,2]
[361786900,1747787326525,-10000.0,0.00012,2]
[361786901,1747787326870,-10000.0,0.00012,2]
[361786902,1747787327486,-10000.0,0.00012,2]
[361786903,1747787328104,-10000.0,0.00012,2]
[361786904,1747787328622,-10000.0,0.00012,2]
[361786905,1747787329326,-10000.0,0.00012,2]
[361786906,1747787329984,-10000.0,0.00012,2]
[361786907,1747787330157,-10000.0,0.00012,2]
[361786908,1747787330578,-10000.0,0.00012,2]
[361786909,1747787331033,-10000.0,0.00012,2]
[361786910,1747787331513,-10000.0,0.00012,2]
[361786911,1747787332037,-10000.0,0.00012,2]
[361786912,1747787333604,-10000.0,0.00012,2]
[361786913,1747787334165,-10000.0,0.00012,2]
[361786914,1747787334499,-10000.0,0.00012,2]
[361786915,1747787334695,-10000.0,0.00012,2]
[361786916,1747787335404,-10000.0,0.00012,2]
[361786917,1747787336004,-10000.0,0.00012,2]
[361786918,1747787336328,-10000.0,0.00012,2]
[361786919,1747787337532,-10000.0,0.00012,2]
[361786920,1747787338232,-10000.0,0.00012,2]
[361786921,1747787339609,-10000.0,0.00012,2]
[361786922,1747787340530,-10000.0,0.00012,2]
[361786923,1747787341892,-10000.0,0.00012,2]
[361786924,1747787344405,-10000.0,0.00012,2]
[361786925,1747787400132,-10000.0,0.00012,2]
[361786927,1747787406242,-1200.0,0.00011999,2]
[361786928,1747787406266,-300.0,0.00011999,2]
[361786929,1747787406294,-500.0,0.00011999,2]
[361786930,1747787406324,-500.0,0.00011999,2]
[361786931,1747787406351,-500.0,0.00011999,2]
[361786932,1747787406375,-263.0,0.00011999,2]
[361786945,1747787431738,-2500.0,0.000119,2]
[361786946,1747787431747,-207.2417,0.000119,2]
[361786948,1747787431757,-237.0,0.00011999,2]
[361786949,1747787431767,-500.0,0.00011999,2]
[361786950,1747787431776,-500.0,0.00011999,2]
[361786951,1747787431785,-500.0,0.00011999,2]
[361786952,1747787431794,-500.0,0.00011999,2]
[361786953,1747787431803,-500.0,0.00011999,2]
[361786954,1747787431812,-500.0,0.00011999,2]
[361786955,1747787431823,-340.44458223,0.00011999,2]
[361786956,1747787431834,-159.55541777,0.00011999,2]
[361786957,1747787431844,-500.0,0.00011999,2]
[361786958,1747787431853,-500.0,0.00011999,2]
[361786959,1747787431863,-500.0,0.00011999,2]
[361786960,1747787431873,-500.0,0.00011999,2]
[361786961,1747787431882,-350.0,0.00011999,2]
[361786962,1747787431892,-500.0,0.00011999,2]
[361786963,1747787431901,-500.0,0.00011999,2]
[361786964,1747787431911,-500.0,0.00011999,2]
[361786965,1747787431921,-500.0,0.00011999,2]
[361786966,1747787431931,-500.0,0.00011999,2]
[361786967,1747787431941,-500.0,0.00011999,2]
[361786968,1747787431951,-500.0,0.00011999,2]
[361786969,1747787431963,-500.0,0.00011999,2]
[361786970,1747787431973,-500.0,0.00011999,2]
[361786971,1747787431983,-500.0,0.00011999,2]
[361786972,1747787431992,-500.0,0.00011999,2]
[361786974,1747787432002,-500.0,0.00011999,2]
[361786976,1747787432011,-500.0,0.00011999,2]
[361786978,1747787432021,-500.0,0.00011999,2]
[361786979,1747787432031,-500.0,0.00011999,2]
[361786980,1747787432040,-500.0,0.00011999,2]
[361786981,1747787432050,-500.0,0.00011999,2]
[361786982,1747787432060,-500.0,0.00011999,2]
[361786983,1747787432069,-500.0,0.00011999,2]
[361786984,1747787432079,-500.0,0.00011999,2]
[361786985,1747787432088,-500.0,0.00011999,2]
[361786986,1747787432098,-500.0,0.00011999,2]
[361786987,1747787432109,-500.0,0.00011999,2]
[361786988,1747787432119,-261.5337798,0.00011999,2]
[361786989,1747787432132,-238.4662202,0.00011999,2]
[361786990,1747787432141,-78.92644751,0.00011999,2]
[361786991,1747787432166,-421.07355249,0.00011999,2]
[361786992,1747787432176,-500.0,0.00011999,2]
[361786993,1747787432186,-500.0,0.00011999,2]
[361786994,1747787432195,-500.0,0.00011999,2]
[361786995,1747787432204,-550.0,0.00011999,2]
[361786996,1747787432214,-500.0,0.00011999,2]
[361786997,1747787432224,-500.0,0.00011999,2]
[361786998,1747787432237,-8939.58555277,0.00012,2]
[361786999,1747787432277,-2230.1566,0.00012,2]
[361787000,1747787432318,-1436.84159377,0.00012,2]
[361787001,1747787432330,-443.07910095,0.00012,2]
[361787002,1747787432342,-11499.4886435,0.00012,2]
[361787007,1747787437532,-172.36447947,0.0001199,2]
[361787030,1747787437930,-2656.71221046,0.00012,2]
[361787037,1747787437987,-4469.34245051,0.00012,2]
[361787044,1747787438045,-277.57103379,0.00012,2]
[361787046,1747787438056,-475.38,0.00012,2]
[361787059,1747787438168,-6836.14487559,0.00012,2]
[361787061,1747787438180,-74703.54613852,0.00012,2]
[361787078,1747787439698,-1172.40370754,0.00012,2]
[361787079,1747787439871,-24909.11500028,0.00012,2]
[361787091,1747787441380,-3470.53647137,0.00012,2]
[361787106,1747787443830,-58343.05946433,0.00012,2]
[361787109,1747787445582,-184356.00788247,0.00012,2]
[361787110,1747787445594,-1253.0,0.00012,2]
[361787111,1747787445605,-372.7631772,0.00012,2]
[361787112,1747787445695,-2462.54982,0.00012,2]
[361787113,1747787445783,-244853.00937291,0.00012,2]
[361787114,1747787445808,-1266.18894991,0.00012,2]
[361787115,1747787445819,-4956.22073504,0.00012,2]
[361787120,1747788042612,150.0,0.00013,5]
[361787121,1747788281043,987.51149193,0.000273,120]
[361787122,1747788358428,-550.609,0.0001176,2]
[361787123,1747788358450,-2024.82,0.0001176,2]
[361787124,1747788358473,-698.6229,0.000119,2]
[361787125,1747788358497,-3699.12806687,0.000119,2]
[361787126,1747788358519,-1101.5815,0.000119,2]
[361787127,1747788358542,-159.10899582,0.000119,2]
[361787128,1747788358569,-437.6077,0.000119,2]
[361787129,1747788358590,-703.1164,0.000119,2]
[361787130,1747788358612,-7961.79528397,0.000119,2]
[361787131,1747788358633,-894.4644,0.000119,2]
[361787132,1747788358654,-194.0,0.0001199,2]
[361787133,1747788358675,-194.0,0.0001199,2]
[361787134,1747788358700,-85372.67219671,0.00012,2]
[361787135,1747788407479,-360.89999997,0.000119,2]
[361787136,1747788431078,-204.27262789,0.000119,2]
[361787137,1747788431100,-208.64956907,0.000119,2]
[361787138,1747788431123,-3942.436,0.000119,2]
[361787139,1747788431143,-759.0222,0.000119,2]
[361787140,1747788431165,-120504.6954,0.000119,2]
[361787141,1747788431189,-5508.63595856,0.00012,2]
[361787142,1747788439120,-42605.54779191,0.00012,2]
[361787143,1747788442395,-159.10899578,0.000119,2]
[361787144,1747788442418,-7084.20554006,0.00012,2]
[361787161,1747788631737,-404.4750197,0.000119,2]
[361787162,1747788631844,-2095.5249803,0.000119,2]
[361787163,1747788631853,-7213.0228161,0.000119,2]
[361787164,1747788631863,-13324.9420151,0.00011999,2]
[361787165,1747788631872,-143877.47010785,0.00012,2]
[361787166,1747788631950,-1890.94000048,0.00012,2]
[361787167,1747788631962,-17719.00621053,0.00012,2]
[361787168,1747788631973,-737.14120042,0.00012,2]
[361787235,1747788637689,-13491.8714277,0.00012,2]
[361787236,1747788637701,-3255.17030353,0.00012,2]
[361787249,1747788638398,-207589.18426033,0.00012,2]
[361787250,1747788638418,-372.87803105,0.00012,2]
[361787251,1747788638448,-1530.01129911,0.00012,2]
[361787252,1747788638475,-2378.4294,0.00012,2]
[361787253,1747788641107,-1310.29847379,0.00012,2]
[361787254,1747788641136,-629.23687052,0.00012,2]
[361787255,1747788641177,-909.65588044,0.00012,2]
[361787256,1747788641190,-298.35550555,0.00012,2]
[361787257,1747788641332,-4993.8949165,0.00012,2]
[361787258,1747788641344,-1696.46510686,0.00012,2]
[361787259,1747788641381,-84461.08849953,0.00012,2]
[361787267,1747788642966,-6132.73122094,0.00012,2]
[361787268,1747788643023,-10111.76150018,0.00012,2]
[361787271,1747788643065,-406.34319163,0.00012,2]
[361787274,1747788643090,-9376.46749257,0.00012,2]
[361787275,1747788643103,-33086.79408404,0.00012,2]
[361787276,1747788646089,-84187.45869994,0.00012,2]
[361787277,1747788646098,-175759.65714347,0.00012,2]
[361787279,1747788646242,-1269.7494336,0.00012,2]
[361787280,1747788646255,-18344.85112494,0.00012,2]
[361787281,1747788646264,-215.18,0.00013699,2]
[361787282,1747788646274,-179.31,0.00013699,2]
[361787283,1747788646285,-896.6,0.00013699,2]
[361787284,1747788646295,-275.61,0.00013699,2]
[361787285,1747788646306,-500.0,0.00013699,2]
[361787286,1747788646317,-500.0,0.00013699,2]
[361787287,1747788646327,-500.0,0.00013699,2]
[361787288,1747788646336,-500.0,0.00013699,2]
[361787289,1747788646346,-500.0,0.00013699,2]
[361787290,1747788646356,-500.0,0.00013699,2]
[361787291,1747788646366,-500.0,0.00013699,2]
[361787292,1747788646377,-500.0,0.00013699,2]
[361787293,1747788646388,-500.0,0.00013699,2]
[361787294,1747788646398,-150.34146772,0.00013699,2]
[361787295,1747788646407,-500.0,0.00013699,2]
[361787296,1747788646418,-500.0,0.00013699,2]
[361787297,1747788646427,-500.0,0.00013699,2]
[361787298,1747788646438,-500.0,0.00013699,2]
[361787299,1747788646448,-500.0,0.00013699,2]
[361787300,1747788646457,-500.0,0.00013699,2]
[361787301,1747788646467,-500.0,0.00013699,2]
[361787302,1747788646476,-500.0,0.00013699,2]
[361787303,1747788646486,-500.0,0.00013699,2]
[361787304,1747788646495,-500.0,0.00013699,2]
[361787305,1747788646505,-500.0,0.00013699,2]
[361787306,1747788646515,-500.0,0.00013699,2]
[361787307,1747788646525,-500.0,0.00013699,2]
[361787308,1747788646537,-500.0,0.00013699,2]
[361787309,1747788646546,-500.0,0.00013699,2]
[361787310,1747788646555,-500.0,0.00013699,2]
[361787311,1747788646565,-500.0,0.00013699,2]
[361787312,1747788646575,-500.0,0.00013699,2]
[361787313,1747788646584,-500.0,0.00013699,2]
[361787314,1747788646594,-184.93371335,0.00013699,2]
[361787315,1747788646604,-500.0,0.00013699,2]
[361787316,1747788646615,-500.0,0.00013699,2]
[361787317,1747788646625,-386.15415426,0.00013699,2]
[361787318,1747788646637,-500.0,0.00013699,2]
[361787319,1747788646648,-500.0,0.00013699,2]
[361787320,1747788646657,-500.0,0.00013699,2]
[361787321,1747788646667,-500.0,0.00013699,2]
[361787322,1747788646676,-500.0,0.00013699,2]
[361787323,1747788646686,-500.0,0.00013699,2]
[361787324,1747788646695,-500.0,0.00013699,2]
[361787325,1747788646705,-500.0,0.00013699,2]
[361787326,1747788646714,-500.0,0.00013699,2]
[361787327,1747788646724,-500.0,0.00013699,2]
[361787328,1747788646734,-200.0,0.00013699,2]
[361787329,1747788646743,-500.0,0.00013699,2]
[361787330,1747788646752,-500.0,0.00013699,2]
[361787331,1747788646762,-500.0,0.00013699,2]
[361787332,1747788646771,-500.0,0.00013699,2]
[361787333,1747788646780,-681.2802889,0.000139,2]
[361787334,1747788646790,-355.22528199,0.00013999,2]
[361787335,1747788646799,-302.89,0.00014499,2]
[361787336,1747788646809,-302.7,0.00014499,2]
[361787337,1747788646820,-304.59,0.00014499,2]
[361787338,1747788646830,-300.49,0.00014499,2]
[361787339,1747788646839,-304.04,0.00014499,2]
[361787340,1747788646847,-301.31,0.00014499,2]
[361787341,1747788646857,-301.37,0.00014499,2]
[361787342,1747788646867,-302.96,0.00014499,2]
[361787343,1747788646877,-300.64,0.00014499,2]
[361787344,1747788646887,-305.51,0.00014499,2]
[361787345,1747788646897,-302.92,0.00014499,2]
[361787346,1747788646906,-300.25,0.00014499,2]
[361787347,1747788646916,-303.95,0.00014499,2]
[361787348,1747788646927,-304.29,0.00014499,2]
[361787349,1747788646937,-300.47,0.00014499,2]
[361787350,1747788646946,-304.23,0.00014499,2]
[361787351,1747788646955,-303.16,0.00014499,2]
[361787352,1747788646965,-300.36,0.00014499,2]
[361787353,1747788646974,-301.16,0.00014499,2]
[361787354,1747788646983,-300.39,0.00014499,2]
[361787355,1747788646993,-300.37,0.00014499,2]
[361787356,1747788647002,-305.42,0.00014499,2]
[361787357,1747788647012,-302.61,0.00014499,2]
[361787358,1747788647022,-300.5,0.00014499,2]
[361787359,1747788647032,-302.53,0.00014499,2]
[361787360,1747788647042,-303.8,0.00014499,2]
[361787361,1747788647052,-305.8,0.00014499,2]
[361787362,1747788647062,-305.36,0.00014499,2]
[361787363,1747788647073,-300.71,0.00014499,2]
[361787364,1747788647083,-303.88,0.00014499,2]
[361787365,1747788647093,-304.95,0.00014499,2]
[361787366,1747788647102,-303.23,0.00014499,2]
[361787367,1747788647111,-300.36,0.00014499,2]
[361787368,1747788647123,-305.03,0.00014499,2]
[361787369,1747788647133,-300.85,0.00014499,2]
[361787370,1747788647143,-738.55722016,0.000149,2]
[361787371,1747788647153,-194.0,0.000149,2]
[361787372,1747788647162,-193.0,0.000149,2]
[361787373,1747788647173,-681.28028862,0.000149,2]
[361787374,1747788647183,-7213.02281608,0.00014998,2]
[361787375,1747788647193,-250.0,0.00015,2]
[361787376,1747788647203,-151.0,0.00015429,2]
[361787377,1747788647212,-151.0,0.00015445,2]
[361787378,1747788647222,-151.0,0.00015446,2]
[361787379,1747788647231,-151.0,0.00015455,2]
[361787380,1747788647242,-681.28028862,0.000159,2]
[361787381,1747788647252,-681.28028862,0.000169,2]
[361787382,1747788647262,-496.8,0.00017002,2]
[361787383,1747788647272,-681.28028862,0.000179,2]
[361787384,1747788647282,-159.10899578,0.0001792,2]
[361787385,1747788647292,-7213.02281608,0.00018096,2]
[361787386,1747788647301,-2127.15,0.00018533,2]
[361787387,1747788647310,-2218.72,0.00018874,2]
[361787388,1747788647322,-681.28028862,0.000189,2]
[361787389,1747788647333,-1000.0,0.00018997,2]
[361787390,1747788647342,-496.8,0.00019266,2]
[361787391,1747788647352,-162.98,0.00019342,2]
[361787392,1747788647362,-200.0,0.00019369,2]
[361787393,1747788647374,-935.0,0.00019837,2]
[361787394,1747788647385,-630.0,0.00019837,2]
[361787395,1747788647395,-154.0,0.00019837,2]
[361787396,1747788647404,-150.0,0.00019837,2]
[361787397,1747788647414,-880.0,0.00019837,2]
[361787398,1747788647423,-167.659,0.00019837,2]
[361787399,1747788647433,-150.956,0.00019837,2]
[361787400,1747788647443,-150.181,0.00019837,2]
[361787401,1747788647453,-990.475,0.00019837,2]
[361787402,1747788647463,-5941.0,0.00019837,2]
[361787403,1747788647473,-150.0,0.00019837,2]
[361787404,1747788647482,-681.28028862,0.000199,2]
[361787405,1747788647493,-150.0,0.0002,4]
[361787406,1747788647503,-275.61,0.00020187,2]